fUST/lending_fUST_20251212
["ID","MTS","AMOUNT","RATE_DAILY","PERIOD"]
[398292125,1765500632157,-268.88345135,0.00010458,2]
[398292126,1765500632167,-1003.0,0.00010458,2]
[398292127,1765500632176,-300.0,0.00010458,2]
[398292128,1765500632185,-467.68948223,0.00010459,2]
[398292129,1765500632208,-153044.99504562,0.00010459,2]
[398292131,1765500638387,-30449.60433155,0.00010459,2]
[398292132,1765500638421,-2311.74667783,0.00010459,2]
[398292133,1765500638471,-2514.17811519,0.00010459,2]
[398292149,1765500640382,-1377.7261926,0.00010459,2]
[398292631,1765500646170,-14183.7922556,0.00010459,2]
[398292633,1765500646179,-227.96674615,0.000105,2]
[398292635,1765500646188,-154.23,0.000105,2]
[398292637,1765500646197,-151.0,0.00010553,2]
[398292639,1765500646207,-500.0,0.00010558,2]
[398292641,1765500646217,-500.0,0.00010558,2]
[398292643,1765500646226,-500.0,0.00010558,2]
[398292645,1765500646235,-500.0,0.00010558,2]
[398292647,1765500646251,-500.0,0.00010558,2]
[398292649,1765500646264,-368.9,0.00010558,2]
[398292651,1765500646273,-368.36646902,0.00010562,2]
[398292653,1765500646282,-490.0,0.00010562,2]
[398292655,1765500646291,-2773.56790519,0.00010562,2]
[398292657,1765500646300,-574.12855637,0.00010562,2]
[398292659,1765500646314,-160.0,0.000106,2]
[398292661,1765500646325,-155.0,0.000106,2]
[398292663,1765500646334,-155.0,0.000106,2]
[398292664,1765500646344,-155.0,0.000106,2]
[398292666,1765500646354,-155.0,0.000106,2]
[398292669,1765500646364,-641.38386512,0.0001074,2]
[398292671,1765500646377,-300.0,0.00010769,2]
[398292673,1765500646386,-300.0,0.00010769,2]
[398292675,1765500646396,-300.0,0.00010769,2]
[398292677,1765500646405,-300.0,0.00010769,2]
[398292679,1765500646415,-300.0,0.00010769,2]
[398292681,1765500646426,-123.41851633,0.00010769,2]
[398295719,1765500868070,352.91,0.00019,120]
[398295731,1765501832337,-154.23,8.8e-05,2]
[398295732,1765501832348,-543.0,8.8e-05,2]
[398295733,1765501832359,-370.83789765,8.921e-05,2]
[398295734,1765501832369,-1120.0,9.889e-05,2]
[398295735,1765501832380,-195.83964513,9.889e-05,2]
[398295736,1765501832391,-104.16035487,9.889e-05,2]
[398295737,1765501832402,-250.29827167,9.89e-05,2]
[398295738,1765501832411,-450.536889,9.89e-05,2]
[398295739,1765501832421,-800.95446933,9.89e-05,2]
[398295740,1765501832430,-1250.23986697,9.89e-05,2]
[398295741,1765501832440,-279.83213782,9.89e-05,2]
[398295742,1765501832450,-319.8081575,9.89e-05,2]
[398295743,1765501832460,-499.20054585,9.89e-05,2]
[398295744,1765501832471,-2236.51712174,9.9e-05,2]
[398295790,1765501838545,-36021.09309385,9.9e-05,2]
[398295792,1765501838557,-300.0,0.00010087,2]
[398295794,1765501838566,-300.0,0.00010087,2]
[398295796,1765501838576,-300.0,0.00010087,2]
[398295798,1765501838585,-300.0,0.00010087,2]
[398295800,1765501838595,-300.0,0.00010087,2]
[398295802,1765501838605,-300.0,0.00010087,2]
[398295804,1765501838615,-300.0,0.00010087,2]
[398295806,1765501838625,-300.0,0.00010087,2]
[398295808,1765501838634,-300.0,0.00010087,2]
[398295810,1765501838644,-300.0,0.00010087,2]
[398295812,1765501838653,-300.0,0.00010087,2]
[398295843,1765501838663,-300.0,0.00010087,2]
[398295846,1765501838953,-300.0,0.00010087,2]
[398295848,1765501838963,-300.0,0.00010087,2]
[398295850,1765501838972,-300.0,0.00010087,2]
[398295852,1765501838981,-430.576,0.0001025,2]
[398295854,1765501838991,-600.0,0.00010288,2]
[398295856,1765501839000,-279.37272688,0.00010358,2]
[398295858,1765501839010,-500.0,0.00010358,2]
[398295860,1765501839019,-500.0,0.00010358,2]
[398295861,1765501839029,-500.0,0.00010358,2]
[398295864,1765501839039,-500.0,0.00010358,2]
[398295866,1765501839049,-500.0,0.00010358,2]
[398295867,1765501839060,-500.0,0.00010358,2]
[398295870,1765501839070,-500.0,0.00010358,2]
[398295872,1765501839081,-157.205,0.00010358,2]
[398295874,1765501839090,-271.47,0.00010358,2]
[398295876,1765501839100,-500.0,0.00010358,2]
[398295878,1765501839109,-890000.0,0.00010359,2]
[398295880,1765501839119,-13527.55127432,0.00010359,2]
[398295882,1765501839129,-1539.2012208,0.00010399,2]
[398295884,1765501839139,-151.0,0.00010453,2]
[398295886,1765501839149,-151.0,0.00010453,2]
[398295888,1765501839160,-151.0,0.00010453,2]
[398295890,1765501839169,-151.0,0.00010453,2]
[398295892,1765501839179,-151.0,0.00010453,2]
[398295894,1765501839189,-151.0,0.00010453,2]
[398295896,1765501839198,-151.0,0.00010453,2]
[398295898,1765501839208,-151.0,0.00010453,2]
[398295900,1765501839218,-151.0,0.00010453,2]
[398295902,1765501839227,-574.12855637,0.00010453,2]
[398295904,1765501839236,-151.0,0.00010453,2]
[398295906,1765501839246,-151.0,0.00010453,2]
[398295908,1765501839255,-151.0,0.00010453,2]
[398295909,1765501839263,-151.0,0.00010453,2]
[398295911,1765501839272,-151.0,0.00010453,2]
[398295913,1765501839282,-151.0,0.00010453,2]
[398295915,1765501839291,-151.0,0.00010453,2]
[398295917,1765501839300,-151.0,0.00010453,2]
[398295919,1765501839311,-151.0,0.00010453,2]
[398295921,1765501839320,-151.0,0.00010453,2]
[398295923,1765501839331,-151.0,0.00010453,2]
[398295924,1765501839340,-151.0,0.00010453,2]
[398295925,1765501839350,-2773.56790519,0.00010453,2]
[398295926,1765501839360,-500.0,0.00010459,2]
[398295927,1765501839369,-70477.2443216,0.00010493,2]
[398295928,1765501839379,-1057.3028787,0.00010493,2]
[398295929,1765501839389,-19234.4541935,0.00010493,2]
[398295930,1765501839399,-6842.2048548,0.00010493,2]
[398295931,1765501839408,-192.481396,0.00010685,2]
[398295932,1765501839418,-500.0,0.00010733,2]
[398295933,1765501839428,-479.59334058,0.0001074,2]
[398295934,1765501839444,-800.93828785,0.00010755,2]
[398295935,1765501839453,-270.03762129,0.00010769,2]
[398295936,1765501839463,-1539.2012208,0.00010769,2]
[398295937,1765501839472,-160.0,0.000108,2]
[398295939,1765501839481,-160.0,0.000108,2]
[398295941,1765501839490,-160.0,0.000108,2]
[398295943,1765501839499,-1000.0,0.000108,2]
[398295945,1765501839508,-1000.0,0.000108,3]
[398295947,1765501839518,-427.67,0.000108,2]
[398295949,1765501839527,-420.0,0.00010878,2]
[398295951,1765501839536,-155.0,0.000109,2]
[398295953,1765501839546,-155.0,0.000109,2]
[398295955,1765501839555,-155.0,0.000109,2]
[398295957,1765501839565,-155.0,0.000109,2]
[398295959,1765501839574,-154.96039963,0.000109,2]
[398295961,1765501839583,-437.58871922,0.00010921,2]
[398295963,1765501839592,-999.0,0.00010959,2]
[398295965,1765501839601,-500.0,0.00010959,2]
[398295967,1765501839610,-573.29785644,0.00010959,7]
[398295969,1765501839619,-334.0,0.00010959,2]
[398295971,1765501839628,-334.0,0.00010959,2]
[398295973,1765501839637,-334.0,0.00010959,2]
[398295975,1765501839646,-334.0,0.00010959,2]
[398295977,1765501839655,-334.0,0.00010959,2]
[398295979,1765501839665,-334.0,0.00010959,2]
[398295981,1765501839673,-334.0,0.00010959,2]
[398295983,1765501839683,-334.0,0.00010959,2]
[398295985,1765501839692,-334.0,0.00010959,2]
[398295987,1765501839701,-334.0,0.00010959,2]
[398295989,1765501839710,-334.0,0.00010959,2]
[398295991,1765501839720,-339.39180417,0.00010959,2]
[398295993,1765501839731,-151.0,0.00010959,2]
[398295995,1765501839740,-152.00138222,0.00010959,2]
[398295997,1765501839749,-152.44518229,0.00010959,2]
[398295999,1765501839758,-151.0,0.00010959,2]
[398296001,1765501839768,-153.19973971,0.00010959,2]
[398296002,1765501839777,-209.6123138,0.00010959,2]
[398296004,1765501839786,-151.0,0.00010959,2]
[398296006,1765501839795,-201.26442786,0.00010959,2]
[398296008,1765501839804,-151.45815104,0.00010959,2]
[398296010,1765501839814,-151.0,0.00010959,2]
[398296012,1765501839823,-197.63228445,0.00010959,2]
[398296014,1765501839832,-316.36579383,0.00010959,2]
[398296016,1765501839841,-355.3823739,0.00010959,2]
[398296018,1765501839853,-280.626214,0.00010959,2]
[398296020,1765501839862,-280.626214,0.00010959,2]
[398296022,1765501839871,-280.626214,0.00010959,2]
[398296024,1765501839880,-280.626214,0.00010959,2]
[398296026,1765501839890,-224.02,0.00010959,2]
[398296028,1765501839900,-152.0,0.00010959,2]
[398296030,1765501839909,-152.0,0.00010959,2]
[398296032,1765501839918,-152.0,0.00010959,2]
[398296034,1765501839929,-152.0,0.00010959,2]
[398296036,1765501839938,-152.0,0.00010959,2]
[398296038,1765501839947,-152.0,0.00010959,2]
[398296040,1765501839956,-152.0,0.00010959,2]
[398296042,1765501839965,-152.0,0.00010959,2]
[398296044,1765501839974,-334.0,0.00010959,2]
[398296046,1765501839984,-334.0,0.00010959,2]
[398296048,1765501839993,-152.0,0.00010959,2]
[398296050,1765501840003,-334.0,0.00010959,2]
[398296052,1765501840012,-152.0,0.00010959,2]
[398296054,1765501840021,-334.0,0.00010959,2]
[398296056,1765501840030,-152.0,0.00010959,2]
[398296059,1765501840039,-334.0,0.00010959,2]
[398296062,1765501840048,-152.0,0.00010959,2]
[398296065,1765501840058,-334.0,0.00010959,2]
[398296068,1765501840067,-334.0,0.00010959,2]
[398296070,1765501840076,-334.0,0.00010959,2]
[398296072,1765501840085,-334.0,0.00010959,2]
[398296074,1765501840094,-334.0,0.00010959,2]
[398296076,1765501840103,-334.0,0.00010959,2]
[398296078,1765501840112,-334.0,0.00010959,2]
[398296080,1765501840121,-334.0,0.00010959,2]
[398296081,1765501840131,-334.0,0.00010959,2]
[398296083,1765501840140,-334.0,0.00010959,2]
[398296085,1765501840149,-334.0,0.00010959,2]
[398296087,1765501840158,-334.0,0.00010959,2]
[398296089,1765501840168,-334.0,0.00010959,2]
[398296091,1765501840177,-334.0,0.00010959,2]
[398296093,1765501840185,-334.0,0.00010959,2]
[398296095,1765501840195,-334.0,0.00010959,2]
[398296097,1765501840204,-334.0,0.00010959,2]
[398296099,1765501840213,-334.0,0.00010959,2]
[398296101,1765501840223,-334.0,0.00010959,2]
[398296103,1765501840231,-334.0,0.00010959,2]
[398296105,1765501840241,-334.0,0.00010959,2]
[398296107,1765501840250,-334.0,0.00010959,2]
[398296109,1765501840259,-334.0,0.00010959,2]
[398296111,1765501840269,-334.0,0.00010959,2]
[398296113,1765501840279,-334.0,0.00010959,2]
[398296115,1765501840288,-334.0,0.00010959,2]
[398296118,1765501840307,-334.0,0.00010959,2]
[398296120,1765501840319,-334.0,0.00010959,2]
[398296122,1765501840331,-341.13558436,0.00010959,2]
[398296124,1765501840340,-174.0,0.00010959,2]
[398296126,1765501840350,-174.0,0.00010959,2]
[398296128,1765501840360,-176.35962744,0.00010959,2]
[398296130,1765501840370,-151.0,0.00010959,2]
[398296132,1765501840380,-151.0,0.00010959,2]
[398296134,1765501840390,-151.0,0.00010959,2]
[398296137,1765501840400,-361.19934632,0.00010959,2]
[398296139,1765501840409,-245.78136203,0.00010959,2]
[398296141,1765501840420,-500.0,0.00010959,2]
[398296143,1765501840429,-500.0,0.00010959,2]
[398296145,1765501840439,-500.0,0.00010959,2]
[398296147,1765501840448,-500.0,0.00010959,2]
[398296149,1765501840458,-500.0,0.00010959,2]
[398296151,1765501840467,-500.0,0.00010959,2]
[398296153,1765501840478,-500.0,0.00010959,2]
[398296155,1765501840488,-500.0,0.00010959,2]
[398296157,1765501840498,-500.0,0.00010959,2]
[398296159,1765501840507,-500.0,0.00010959,2]
[398296161,1765501840517,-500.0,0.00010959,2]
[398296162,1765501840527,-500.0,0.00010959,2]
[398296164,1765501840537,-500.0,0.00010959,2]
[398296166,1765501840547,-500.0,0.00010959,2]
[398296168,1765501840556,-500.0,0.00010959,2]
[398296170,1765501840566,-500.0,0.00010959,2]
[398296172,1765501840576,-500.0,0.00010959,2]
[398296174,1765501840586,-500.0,0.00010959,2]
[398296176,1765501840595,-500.0,0.00010959,2]
[398296178,1765501840604,-500.0,0.00010959,2]
[398296180,1765501840614,-500.0,0.00010959,2]
[398296182,1765501840623,-500.0,0.00010959,2]
[398296184,1765501840633,-500.0,0.00010959,2]
[398296186,1765501840642,-500.0,0.00010959,2]
[398296188,1765501840651,-500.0,0.00010959,2]
[398296190,1765501840661,-500.0,0.00010959,2]
[398296192,1765501840670,-500.0,0.00010959,2]
[398296194,1765501840681,-500.0,0.00010959,2]
[398296196,1765501840690,-500.0,0.00010959,2]
[398296198,1765501840699,-500.0,0.00010959,2]
[398296200,1765501840709,-500.0,0.00010959,2]
[398296202,1765501840718,-500.0,0.00010959,2]
[398296204,1765501840728,-500.0,0.00010959,2]
[398296206,1765501840737,-500.0,0.00010959,2]
[398296208,1765501840747,-500.0,0.00010959,2]
[398296210,1765501840756,-500.0,0.00010959,2]
[398296212,1765501840766,-190.59650271,0.00010959,2]
[398296214,1765501840775,-500.0,0.00010959,2]
[398296216,1765501840785,-500.0,0.00010959,2]
[398296218,1765501840795,-500.0,0.00010959,2]
[398296220,1765501840804,-500.0,0.00010959,2]
[398296222,1765501840815,-500.0,0.00010959,2]
[398296224,1765501840825,-500.0,0.00010959,2]
[398296226,1765501840835,-500.0,0.00010959,2]
[398296228,1765501840846,-500.0,0.00010959,2]
[398296230,1765501840856,-500.0,0.00010959,2]
[398296232,1765501840866,-500.0,0.00010959,2]
[398296234,1765501840876,-500.0,0.00010959,2]
[398296237,1765501840887,-500.0,0.00010959,2]
[398296239,1765501840896,-500.0,0.00010959,2]
[398296241,1765501840906,-500.0,0.00010959,2]
[398296243,1765501840915,-500.0,0.00010959,2]
[398296245,1765501840925,-500.0,0.00010959,2]
[398296247,1765501840935,-1852.18764358,0.0001098,2]
[398296249,1765501840944,-151.0,0.00011,2]
[398296251,1765501840954,-151.0,0.00011,2]
[398296253,1765501840964,-151.0,0.00011,2]
[398296255,1765501840973,-151.0,0.00011,2]
[398296257,1765501840983,-151.0,0.00011,2]
[398296258,1765501840992,-151.0,0.00011,2]
[398296259,1765501841002,-151.0,0.00011,2]
[398296260,1765501841011,-595.37131296,0.00011001,2]
[398296261,1765501841020,-151.0,0.00011001,2]
[398296262,1765501841029,-2876.18991768,0.00011001,2]
[398296263,1765501841039,-500.0,0.00011007,2]
[398296264,1765501841048,-151.0,0.00011096,2]
[398296265,1765501841058,-500.0,0.00011096,2]
[398296266,1765501841067,-500.0,0.00011096,2]
[398296267,1765501841076,-151.0,0.000111,2]
[398296268,1765501841085,-151.0,0.000111,2]
[398296269,1765501841094,-151.0,0.000111,2]
[398296270,1765501841103,-1539.2012208,0.0001114,2]
[398296271,1765501841112,-151.0,0.000112,2]
[398296272,1765501841121,-151.0,0.000112,2]
[398296273,1765501841131,-3557.63030107,0.00011201,2]
[398296274,1765501841140,-500.0,0.00011233,2]
[398296275,1765501841149,-151.0,0.00011233,2]
[398296276,1765501841158,-500.0,0.00011233,2]
[398296277,1765501841167,-500.0,0.00011233,2]
[398296278,1765501841176,-224.02,0.00011233,2]
[398296279,1765501841186,-151.0,0.000113,2]
[398296280,1765501841195,-151.0,0.000113,2]
[398296281,1765501841204,-151.0,0.000113,2]
[398296282,1765501841213,-549.5,0.000113,2]
[398296283,1765501841222,-10000.0,0.000113,2]
[398296284,1765501841231,-720.0,0.00011316,2]
[398296285,1765501841240,-409.6494177,0.0001137,2]
[398296286,1765501841249,-295.63188223,0.0001137,2]
[398296287,1765501841257,-500.0,0.0001137,2]
[398296288,1765501841266,-500.0,0.0001137,2]
[398296289,1765501841275,-3557.63030107,0.00011378,2]
[398296290,1765501841284,-151.0,0.000114,2]
[398296291,1765501841293,-151.0,0.000114,2]
[398296292,1765501841303,-151.0,0.000114,2]
[398296293,1765501841312,-772.0,0.000114,2]
[398296294,1765501841322,-154.23,0.000114,2]
[398296295,1765501841332,-151.0,0.000115,2]
[398296296,1765501841342,-1000.0,0.000115,2]
[398296297,1765501841351,-500.0,0.00011507,2]
[398296298,1765501841361,-192.481396,0.00011507,2]
[398296299,1765501841371,-192.481396,0.00011507,2]
[398296300,1765501841380,-500.0,0.00011507,2]
[398296301,1765501841390,-500.0,0.00011507,2]
[398296302,1765501841399,-224.04471665,0.00011507,2]
[398296303,1765501841409,-1539.2012208,0.0001151,2]
[398296304,1765501841418,-151.0,0.00011544,2]
[398296305,1765501841427,-280.626214,0.00011548,2]
[398296306,1765501841436,-280.626214,0.00011548,2]
[398296307,1765501841445,-280.626214,0.00011548,2]
[398296308,1765501841454,-280.626214,0.00011548,2]
[398296309,1765501841463,-617.40005154,0.00011549,2]
[398296310,1765501841472,-151.0,0.00011549,2]
[398296311,1765501841481,-2982.60894464,0.00011549,2]
[398296312,1765501841490,-500.0,0.00011644,2]
[398296313,1765501841500,-151.0,0.000117,2]
[398296314,1765501841509,-151.0,0.00011715,2]
[398296315,1765501841518,-151.0,0.00011715,2]
[398296316,1765501841527,-151.0,0.00011715,2]
[398296317,1765501841536,-1000.0,0.0001178,2]
[398296318,1765501841544,-500.0,0.00011781,2]
[398296319,1765501841553,-500.0,0.00011781,2]
[398296320,1765501841563,-151.0,0.000118,2]
[398296321,1765501841572,-1539.2012208,0.00011881,2]
[398296322,1765501841581,-155.0,0.000119,2]
[398296323,1765501841590,-155.0,0.000119,2]
[398296324,1765501841599,-151.0,0.000119,2]
[398296325,1765501841608,-250.814,0.00011903,2]
[398296326,1765501841617,-250.0,0.00011903,2]
[398296327,1765501841626,-231.422,0.00011903,2]
[398296328,1765501841635,-150.0,0.00011903,2]
[398296329,1765501841644,-2156.0,0.00011903,2]
[398296330,1765501841654,-1360.0,0.00011903,2]
[398296331,1765501841663,-631.0,0.00011903,2]
[398296332,1765501841672,-415.0,0.00011903,2]
[398296333,1765501841681,-500.0,0.00011918,2]
[398296334,1765501841690,-587.0,0.00011966,2]
[398296335,1765501841699,-130364.72190961,0.00012,2]
[398296336,1765501841708,-280.626214,0.00012,2]
[398296337,1765501841717,-280.626214,0.00012,2]
[398296338,1765501841726,-280.626214,0.00012,2]
[398296339,1765501841735,-280.626214,0.00012,2]
[398296340,1765501841744,-151.0,0.00012,2]
[398296341,1765501841753,-151.0,0.00012,2]
[398296342,1765501841762,-151.0,0.00012,2]
[398296343,1765501841771,-5675.0,0.00012,2]
[398296344,1765501841780,-500.0,0.00012055,2]
[398296345,1765501841790,-500.0,0.00012055,2]
[398296346,1765501841799,-299.05830548,0.00012094,2]
[398296347,1765501841808,-151.0,0.00012097,2]
[398296348,1765501841818,-640.24385345,0.00012097,2]
[398296349,1765501841828,-3092.96547559,0.00012097,2]
[398296350,1765501841837,-151.0,0.000121,2]
[398296351,1765501841847,-295.30641892,0.00012118,2]
[398296352,1765501841859,-501.47539731,0.00012192,2]
[398296353,1765501841869,-151.0,0.000122,2]
[398296354,1765501841877,-6404.45082469,0.00012229,2]
[398296355,1765501841887,-1539.2012208,0.00012251,2]
[398296356,1765501841897,-45668.53565569,0.00012274,2]
[398296357,1765501841906,-151.0,0.00012274,2]
[398296358,1765501841915,-280.626214,0.0001229,2]
[398296359,1765501841926,-280.626214,0.0001229,2]
[398296360,1765501841935,-280.626214,0.0001229,2]
[398296361,1765501841945,-280.626214,0.0001229,2]
[398296362,1765501841954,-151.0,0.0001229,2]
[398296363,1765501841963,-151.0,0.0001229,2]
[398296364,1765501841972,-151.0,0.0001229,2]
[398296365,1765501841981,-15725.5988123,0.00012291,2]
[398296366,1765501841991,-341.43913962,0.00012327,2]
[398296367,1765501842001,-500.0,0.00012329,2]
[398296368,1765501842010,-380.56,0.00012329,2]
[398296369,1765501842019,-151.0,0.00012329,2]
[398296370,1765501842029,-151.0,0.00012329,2]
[398296371,1765501842038,-221.8856,0.00012329,2]
[398296372,1765501842047,-221.8856,0.00012329,2]
[398296373,1765501842057,-221.8856,0.00012329,2]
[398296374,1765501842067,-221.8856,0.00012329,2]
[398296375,1765501842076,-221.8856,0.00012329,2]
[398296376,1765501842086,-221.8856,0.00012329,2]
[398296377,1765501842095,-221.8856,0.00012329,2]
[398296378,1765501842104,-221.8856,0.00012329,2]
[398296379,1765501842114,-151.0,0.00012329,2]
[398296380,1765501842124,-151.0,0.00012329,2]
[398296381,1765501842133,-151.0,0.00012329,2]
[398296383,1765501842143,-151.0,0.00012329,2]
[398296385,1765501842152,-151.0,0.00012329,2]
[398296387,1765501842161,-151.0,0.00012329,2]
[398296389,1765501842170,-151.0,0.00012329,2]
[398296391,1765501842179,-151.0,0.00012329,2]
[398296393,1765501842188,-151.0,0.00012329,2]
[398296395,1765501842197,-151.0,0.00012329,2]
[398296396,1765501842207,-151.0,0.00012329,2]
[398296398,1765501842216,-151.0,0.00012329,2]
[398296400,1765501842229,-151.0,0.00012329,2]
[398296402,1765501842239,-151.0,0.00012329,2]
[398296404,1765501842249,-151.0,0.00012329,2]
[398296405,1765501842258,-151.0,0.00012329,2]
[398296406,1765501842267,-151.0,0.00012329,2]
[398296407,1765501842276,-151.0,0.00012329,2]
[398296408,1765501842285,-151.0,0.00012329,2]
[398296409,1765501842294,-151.0,0.00012329,2]
[398296410,1765501842306,-151.0,0.00012329,2]
[398296411,1765501842326,-161.184916,0.00012329,2]
[398296412,1765501842337,-204.971416,0.00012329,2]
[398296413,1765501842346,-151.0,0.00012329,2]
[398296414,1765501842356,-151.0,0.00012329,2]
[398296415,1765501842365,-151.0,0.00012329,2]
[398296416,1765501842375,-151.0,0.00012329,2]
[398296417,1765501842385,-151.0,0.00012329,2]
[398296418,1765501842402,-151.0,0.00012329,2]
[398296419,1765501842414,-151.0,0.00012329,2]
[398296420,1765501842424,-151.0,0.00012329,2]
[398296421,1765501842435,-151.0,0.00012329,2]
[398296422,1765501842445,-151.0,0.00012329,2]
[398296423,1765501842455,-154.321217,0.00012329,2]
[398296424,1765501842466,-151.0,0.00012329,2]
[398296425,1765501842475,-151.0,0.00012329,2]
[398296426,1765501842484,-151.0,0.00012329,2]
[398296427,1765501842494,-151.0,0.00012329,2]
[398296428,1765501842503,-151.0,0.00012329,2]
[398296429,1765501842514,-151.0,0.00012329,2]
[398296430,1765501842523,-151.0,0.00012329,2]
[398296431,1765501842532,-151.0,0.00012329,2]
[398296432,1765501842542,-151.0,0.00012329,2]
[398296433,1765501842551,-151.0,0.00012329,2]
[398296434,1765501842562,-151.0,0.00012329,2]
[398296435,1765501842571,-151.0,0.00012329,2]
[398296436,1765501842580,-151.0,0.00012329,2]
[398296437,1765501842590,-193.716154,0.00012329,2]
[398296438,1765501842599,-193.716154,0.00012329,2]
[398296439,1765501842609,-151.0,0.00012329,2]
[398296440,1765501842618,-151.0,0.00012329,2]
[398296441,1765501842627,-151.0,0.00012329,2]
[398296442,1765501842636,-243.829796,0.00012329,2]
[398296443,1765501842645,-151.0,0.00012329,2]
[398296444,1765501842655,-151.0,0.00012329,2]
[398296445,1765501842664,-163.059404,0.00012329,2]
[398296446,1765501842673,-193.716154,0.00012329,2]
[398296447,1765501842683,-193.716154,0.00012329,2]
[398296448,1765501842692,-193.716154,0.00012329,2]
[398296449,1765501842701,-193.716154,0.00012329,2]
[398296450,1765501842710,-151.0,0.00012329,2]
[398296451,1765501842719,-151.0,0.00012329,2]
[398296452,1765501842729,-151.0,0.00012329,2]
[398296453,1765501842738,-151.0,0.00012329,2]
[398296454,1765501842747,-193.716154,0.00012329,2]
[398296455,1765501842757,-151.0,0.00012329,2]
[398296456,1765501842766,-151.0,0.00012329,2]
[398296458,1765501842775,-151.0,0.00012329,2]
[398296459,1765501842784,-193.716154,0.00012329,2]
[398296460,1765501842794,-180.894527,0.00012329,2]
[398296462,1765501842803,-193.716154,0.00012329,2]
[398296463,1765501842815,-151.0,0.00012329,2]
[398296464,1765501842824,-151.0,0.00012329,2]
[398296465,1765501842834,-151.0,0.00012329,2]
[398296466,1765501842844,-193.716154,0.00012329,2]
[398296467,1765501842859,-193.716154,0.00012329,2]
[398296468,1765501842868,-193.716154,0.00012329,2]
[398296469,1765501842877,-151.0,0.00012329,2]
[398296470,1765501842886,-151.657756,0.00012329,2]
[398296471,1765501842898,-155.286614,0.00012329,2]
[398296472,1765501842907,-155.286614,0.00012329,2]
[398296473,1765501842917,-155.286614,0.00012329,2]
[398296474,1765501842927,-155.286614,0.00012329,2]
[398296475,1765501842936,-155.286614,0.00012329,2]
[398296476,1765501842945,-155.286614,0.00012329,2]
[398296477,1765501842955,-155.286614,0.00012329,2]
[398296478,1765501843179,-155.286614,0.00012329,2]
[398296479,1765501843190,-155.286614,0.00012329,2]
[398296480,1765501843199,-155.286614,0.00012329,2]
[398296481,1765501843209,-155.286614,0.00012329,2]
[398296482,1765501843219,-155.286614,0.00012329,2]
[398296483,1765501843230,-151.0,0.00012329,2]
[398296484,1765501843239,-151.0,0.00012329,2]
[398296485,1765501843250,-151.0,0.00012329,2]
[398296486,1765501843259,-151.0,0.00012329,2]
[398296487,1765501843269,-151.0,0.00012329,2]
[398296488,1765501843279,-151.0,0.00012329,2]
[398296489,1765501843288,-151.0,0.00012329,2]
[398296490,1765501843297,-151.0,0.00012329,2]
[398296491,1765501843310,-151.0,0.00012329,2]
[398296492,1765501843320,-213.946606,0.00012329,2]
[398296493,1765501843329,-151.0,0.00012329,2]
[398296494,1765501843339,-151.0,0.00012329,2]
[398296495,1765501843349,-186.470067,0.00012329,2]